Cogmind - Beta 12 @@@ ROGUE MODE // 2023.05.25 @ 13:58:11 Player: omewwes Result: Self-destructed Performance ------------- Evolutions (2) 1000 Regions Visited (5) 1000 Robots Destroyed (18) 90 Value Destroyed (401) 401 Prototype IDs (0) 0 Alien Tech Used (0) 0 Bonus (0) 0 TOTAL SCORE: 2491 Bonus ------- None Cogmind --------- Core Integrity 550/550 Matter 300/300 Energy 250/250 System Corruption 0% Temperature Cool (0) Movement Walking (190) Ox1 Location -8/Materials Parts ------- > --- POWER (1) -------- Ion Engine > --- PROPULSION (3) --- Aluminum Leg Aluminum Leg > --- UTILITY (5) ------ Cooling System Medium Storage Unit > --- WEAPON (2) ------- Particle Gun Particle Gun > --- INVENTORY (10) --- Ion Engine Aluminum Leg Aluminum Leg Aluminum Leg Heat Sink High-capacity Matter Pod (200) Light Armor Plating Particle Gun Particle Gun Grenade Launcher Peak State ------------ > --- POWER ------------ Ion Engine > --- PROPULSION ------- Aluminum Leg Aluminum Leg > --- UTILITY ---------- Cooling System Medium Storage Unit > --- WEAPON ----------- Beam Rifle Beam Rifle > --- INVENTORY -------- Ion Engine Aluminum Leg Aluminum Leg Aluminum Leg Aluminum Leg Heat Sink Small Storage Unit EM Pulse Gun Light Assault Rifle Grenade Launcher [Rating: 11] Favorites ----------- Power Ion Engine Engine Ion Engine Propulsion Aluminum Leg Leg Aluminum Leg Utility Medium Storage Unit Device Cooling System Storage Medium Storage Unit Weapon Particle Gun Energy Gun Particle Gun Energy Cannon Beam Cannon Ballistic Gun Light Assault Rifle Launcher Grenade Launcher Build | -11 -10 -10 -10 -9 -8 ------- Run | Jun Mat Min Exi Min Mat Slots Evolved 4 | . . . . . 4 Power . | . . . . . . Propulsion 1 | . . . . . 1 Utility 3 | . . . . . 3 Weapon . | . . . . . . Parts Attached 20 | . 17 1 . 2 . Power 2 | . 2 . . . . Engine 2 | . 2 . . . . Core . | . . . . . . Reactor . | . . . . . . Propulsion 6 | . 5 1 . . . Treads . | . . . . . . Leg 6 | . 5 1 . . . Wheel . | . . . . . . Hover . | . . . . . . Flight . | . . . . . . Utility 3 | . 3 . . . . Device 2 | . 2 . . . . Storage 1 | . 1 . . . . Processor . | . . . . . . Hackware . | . . . . . . Protection . | . . . . . . Artifact . | . . . . . . Weapon 9 | . 7 . . 2 . Energy Gun 6 | . 5 . . 1 . Energy Cannon 1 | . 1 . . . . Ballistic Gun 1 | . 1 . . . . Ballistic Cannon . | . . . . . . Launcher 1 | . . . . 1 . Special Weapon . | . . . . . . Impact Weapon . | . . . . . . Slashing Weapon . | . . . . . . Piercing Weapon . | . . . . . . Special Melee Weapon . | . . . . . . Unidentified Prototypes . | . . . . . . Parts Lost . | . . . . . . Power . | . . . . . . Propulsion . | . . . . . . Utility . | . . . . . . Weapon . | . . . . . . Highest Loss Streak . | . . . . . . To Critical Strikes . | . . . . . . Average Slot Usage (%) 98 | . 94 100 100 100 . Engine 14 | . 14 14 14 14 . Leg 28 | . 28 28 28 28 . Device 12 | . 8 14 14 14 . Storage 14 | . 14 14 14 14 . Energy Gun 23 | . 15 28 28 28 . Energy Cannon 2 | . 8 . . . . Ballistic Gun 1 | . 3 . . . . Naked Turns . | . . . . . . Heaviest Build 23 | 11 23 23 23 23 . Greatest Support 20 | 20 20 20 20 20 . Greatest Overweight (x) 1 | . 1 1 1 1 . Average Overweight (x) . | . . 1 1 1 . Largest Inventory Capacity 10 | . 10 10 10 10 . Average Capacity 9 | . 9 10 10 10 . Most Carried 10 | . 10 10 10 10 . Average Carried 8 | . 6 10 9 9 . Final Capacity 10 | 8 10 10 10 10 10 Final Carried 10 | 6 10 10 10 10 10 Class Distribution -------------------- 100% | Mutant Dominant Class ---------------- Mutant | -10/Materials Mutant | -10/Mines Mutant | -10/Exiles Mutant | -9/Mines Mutant | -8/Materials Resources | -11 -10 -10 -10 -9 -8 ----------- Run | Jun Mat Min Exi Min Mat Matter Collected 433 | 200 90 77 13 53 . Remotely . | . . . . . . Salvage Created 585 | . 383 111 . 91 . Parts 46 | . 35 7 . 4 . Haulers Intercepted 1 | . 1 . . . . Recyclers Shooed 2 | . 2 . . . . Parts Field Recycled . | . . . . . . Retrieved Matter . | . . . . . . Parts Self-Destructed . | . . . . . . Prevented . | . . . . . . Kills | -11 -10 -10 -10 -9 -8 ------- Run | Jun Mat Min Exi Min Mat Combat Hostiles Destroyed 12 | . 9 2 . 1 . Guns 6 | . 3 2 . 1 . Cannons 6 | . 6 . . . . Classes Destroyed 7 | . 5 . . 2 . Worker 3 | . 2 1 . . . Hauler 1 | . 1 . . . . Recycler 1 | . . . . 1 . Watcher 1 | . 1 . . . . Swarmer 3 | . 3 . . . . Grunt 8 | . 6 2 . . . Brawler 1 | . . . . 1 . Best Kill Streak 6 | . 6 3 . 2 . Combat Bots Only 3 | . 3 2 . 1 . Max Kills in Single Turn 1 | . 1 1 . 1 . Gunslinging . | . . . . . . Exploded . | . . . . . . Melee . | . . . . . . Uniques/NPCs Destroyed . | . . . . . . Combat | -11 -10 -10 -10 -9 -8 -------- Run | Jun Mat Min Exi Min Mat Damage Taken 457 | . 239 147 . 71 . Core 64 | . 23 41 . . . Absorbed by Shields . | . . . . . . Core Remaining (%) 87 | 100 . . . 74 . Volleys Fired 51 | . 39 7 . 5 . Largest 2 | . 2 2 . 2 . Hottest 130 | . 110 130 . 130 . Shots Fired 79 | . 57 14 . 8 . Gun 52 | . 32 14 . 6 . Cannon 25 | . 25 . . . . Launcher 2 | . . . . 2 . Special . | . . . . . . Kinetic 14 | . 14 . . . . Thermal 63 | . 43 14 . 6 . Explosive 2 | . . . . 2 . Electromagnetic . | . . . . . . Robot Hit Streak 8 | . 8 4 . 3 . Robot Miss Streak 2 | . 2 2 . 2 . Penetration Max . | . . . . . . Secondary Targets . | . . . . . . Shots Hit Robots 48 | . 37 7 . 4 . Core Hits 28 | . 19 4 . 5 . Critical Kills . | . . . . . . Critical Parts Destroyed . | . . . . . . Critical Strikes 1 | . 1 . . . . Burn 1 | . 1 . . . . Melee Attacks . | . . . . . . Impact . | . . . . . . Slashing . | . . . . . . Piercing . | . . . . . . Sneak Attacks . | . . . . . . Combat Hostiles . | . . . . . . Follow-up Attacks . | . . . . . . Damage Inflicted 780 | . 519 125 . 136 . Guns 375 | . 188 125 . 62 . Cannons 315 | . 315 . . . . Explosions 74 | . . . . 74 . Melee . | . . . . . . Ramming 16 | . 16 . . . . Kinetic 55 | . 55 . . . . Thermal 635 | . 448 125 . 62 . Explosive 74 | . . . . 74 . Electromagnetic . | . . . . . . Impact . | . . . . . . Slashing . | . . . . . . Piercing . | . . . . . . Highest Corruption . | . . . . . . Average Corruption . | . . . . . . Corruption Purged . | . . . . . . Corruption Blocked . | . . . . . . Overload Shots . | . . . . . . Overflow Damage . | . . . . . . Projectiles . | . . . . . . Explosions . | . . . . . . Melee . | . . . . . . Knockbacks . | . . . . . . Impact . | . . . . . . Kinetic . | . . . . . . Secondary . | . . . . . . Self-Inflicted Damage 38 | . . . . 38 . Shots 1 | . . . . 1 . Rammed . | . . . . . . Targets Rammed 5 | . 5 . . . . Kicked 5 | . 5 . . . . Crushed . | . . . . . . Highest Temperature 185 | . 185 57 . 6 . Average Temperature 46 | . 53 32 . 3 . Received Heat Transfer 183 | . 93 84 . 6 . Siege Activations . | . . . . . . Robots Corrupted . | . . . . . . Combat Hostiles . | . . . . . . Parts Fried . | . . . . . . Impact Corruptions . | . . . . . . Robots Melted . | . . . . . . Combat Hostiles . | . . . . . . Parts Melted 3 | . 3 . . . . Heat Transferred 1591 | . 1147 296 . 148 . Parts Sabotaged . | . . . . . . Parts Stolen . | . . . . . . Parts Stripped . | . . . . . . Power Chain Reactions . | . . . . . . Missiles Intercepted . | . . . . . . Alert | -11 -10 -10 -10 -9 -8 ------- Run | Jun Mat Min Exi Min Mat Peak Influence 411 | . 411 175 . 51 . Initial 105 | . . 105 . . 19 Average 138 | . 229 81 . 18 . Maximum Alert Level 2 | . 2 . . . . Low Security (%) 71 | . 33 100 . 100 . Level 1 24 | . 58 . . . . Level 2 3 | . 7 . . . . Level 3 . | . . . . . . Level 4 . | . . . . . . Level 5 . | . . . . . . High Security . | . . . . . . Max Security . | . . . . . . Squads Dispatched 2 | . 2 . . . . Investigation 2 | . 2 . . . . Extermination . | . . . . . . Reinforcement . | . . . . . . Assault . | . . . . . . Garrison . | . . . . . . Intercept . | . . . . . . Searches Triggered . | . . . . . . Construction Impeded . | . . . . . . Haulers Reinforced . | . . . . . . Active Scanning Responses . | . . . . . . Cargo Convoy Interrupts . | . . . . . . Stealth | -11 -10 -10 -10 -9 -8 --------- Run | Jun Mat Min Exi Min Mat Distress Signals 2 | . 2 . . . . Communications Jammed . | . . . . . . Distress Signals . | . . . . . . Times Spotted 25 | . 20 2 . 3 . Peak Tracking Total 5 | . 5 2 . 3 . Tactical Retreats 3 | . 3 . . . . Traps | -11 -10 -10 -10 -9 -8 ------- Run | Jun Mat Min Exi Min Mat Traps Triggered 2 | . 2 . . . . Indirectly . | . . . . . . Trap Hack Attempts . | . . . . . . Triggered . | . . . . . . Disarmed . | . . . . . . Reprogrammed . | . . . . . . Reused . | . . . . . . Traps Extracted . | . . . . . . Installed . | . . . . . . Triggered . | . . . . . . Machines | -11 -10 -10 -10 -9 -8 ---------- Run | Jun Mat Min Exi Min Mat Machines Disabled 1 | . 1 . . . . Max in Single Turn 1 | . 1 . . . . Machines Repaired . | . . . . . . Machines Sabotaged . | . . . . . . Overloaded Fab Kills . | . . . . . . Hacking | -11 -10 -10 -10 -9 -8 --------- Run | Jun Mat Min Exi Min Mat Machines Accessed 5 | . 4 . 1 . . Terminals 3 | . 3 . . . . Fabricators . | . . . . . . Repair Stations . | . . . . . . Recycling Units 1 | . 1 . . . . Scanalyzers . | . . . . . . Garrison Access . | . . . . . . Total Hacks 8 | . 7 . 1 . . Successful 7 | . 6 . 1 . . Failed 1 | . 1 . . . . Catastrophic . | . . . . . . Database Lockouts . | . . . . . . Manual 4 | . 4 . . . . Terminals 6 | . 6 . . . . Fabricators . | . . . . . . Repair Stations . | . . . . . . Recycling Units 1 | . 1 . . . . Scanalyzers . | . . . . . . Garrison Access . | . . . . . . Terminal Hacks 6 | . 5 . 1 . . Record 1 | . . . 1 . . Part Schematic 1 | . 1 . . . . Branch Access Points 1 | . 1 . . . . Investigation Status 1 | . 1 . . . . Zone Layout 2 | . 2 . . . . Fabricator Hacks . | . . . . . . Repair Station Hacks . | . . . . . . Recycling Unit Hacks . | . . . . . . Scanalyzer . | . . . . . . Garrison Access Hacks . | . . . . . . Unauthorized Hacks 1 | . 1 . . . . Terminals . | . . . . . . Fabricators . | . . . . . . Repair Stations . | . . . . . . Recycling Units 1 | . 1 . . . . Tunnel 1 | . 1 . . . . Scanalyzers . | . . . . . . Garrison Access . | . . . . . . Data Cores Recovered . | . . . . . . Used . | . . . . . . Hacking Detections 1 | . 1 . . . . Full Trace Events . | . . . . . . Feedback Events . | . . . . . . Feedback Blocked . | . . . . . . Robot Schematics Acquired . | . . . . . . Robots Built . | . . . . . . Authchips . | . . . . . . Time . | . . . . . . Total Robot Build Rating . | . . . . . . Part Schematics Acquired 1 | . 1 . . . . Parts Built . | . . . . . . Authchips . | . . . . . . Time . | . . . . . . Total Part Build Rating . | . . . . . . Parts Repaired . | . . . . . . Time . | . . . . . . Parts Recycled . | . . . . . . Recycled Matter . | . . . . . . Retrieved Matter . | . . . . . . Retrieved Components . | . . . . . . Parts Scanalyzed . | . . . . . . Part Schematics Acquired . | . . . . . . Parts Damaged . | . . . . . . Bothacking | -11 -10 -10 -10 -9 -8 ------------ Run | Jun Mat Min Exi Min Mat Used RIF Installer . | . . . . . . Robots Hacked . | . . . . . . Non-combat . | . . . . . . Combat . | . . . . . . Robot Hacks Applied . | . . . . . . Relay Couplers Released . | . . . . . . Fabnet Peak Effective % . | . . . . . . Robots Rewired . | . . . . . . Allies Hacked . | . . . . . . Hacks Repelled . | . . . . . . Allies | -11 -10 -10 -10 -9 -8 -------- Run | Jun Mat Min Exi Min Mat Total Allies . | . . . . . . Largest Group . | . . . . . . Highest-Rated Group . | . . . . . . Highest-Rated Ally . | . . . . . . Total Orders . | . . . . . . Ally Attacks . | . . . . . . Total Damage . | . . . . . . Kills . | . . . . . . Allies Corrupted . | . . . . . . Allies Melted . | . . . . . . Intel | -11 -10 -10 -10 -9 -8 ------- Run | Jun Mat Min Exi Min Mat Robot Analysis Total . | . . . . . . Derelict Logs Recovered 1 | . . 1 . . . Drone Launches . | . . . . . . Drone Recoveries . | . . . . . . Exploration | -11 -10 -10 -10 -9 -8 ------------- Run | Jun Mat Min Exi Min Mat Turns Passed 1682 | . 582 666 310 124 . Spaces Moved 836 | 1 276 339 163 57 . Core . | . . . . . . Treads . | . . . . . . Legs 836 | 1 276 339 163 57 . Wheels . | . . . . . . Hover . | . . . . . . Flight . | . . . . . . Fastest Speed 120 | 120 120 190 190 190 . Average Speed 178 | 120 156 190 190 190 . Slowest Speed 190 | 120 190 190 190 190 . Overloaded Moves . | . . . . . . Propulsion Burnouts . | . . . . . . Robots Hopped . | . . . . . . Cave-ins Triggered . | . . . . . . Exploration Rate (%) 32 | 1 53 68 53 19 1 Regions Visited 5 Branch Regions 3 Pre-discovered Areas 4 | . 1 1 1 1 . Known Exits Taken 1 | . 1 . . . . Unknown Exits Taken 4 | 1 . 1 1 1 . Scrap Searched 1 | . . 1 . . . Spaces Dug . | . . . . . . Terrain Destroyed 16 | . . . . 16 . Melee . | . . . . . . Projectile . | . . . . . . AOE 16 | . . . . 16 . Terrain Rammed . | . . . . . . Walls Destroyed . | . . . . . . Machines Disabled . | . . . . . . Actions | -11 -10 -10 -10 -9 -8 --------- Run | Jun Mat Min Exi Min Mat Total 950 | . 373 348 164 65 . Wait 15 | . 14 1 . . . Move 831 | . 275 338 162 56 . Hop . | . . . . . . Pick Up 8 | . 6 . 1 1 . Fast Attach 8 | . 8 . . . . Attach . | . . . . . . Detach 3 | . 3 . . . . Swap 12 | . 9 1 . 2 . Drop 17 | . 14 1 1 1 . Fire 51 | . 39 7 . 5 . Melee . | . . . . . . Ram . | . . . . . . Kick 5 | . 5 . . . . Crush . | . . . . . . Escape Stasis . | . . . . . . Rewire . | . . . . . . Trap . | . . . . . . Miscellaneous . | . . . . . . Route ------- -11/Junkyard -10/Materials (discovered 4 exits: [*Mat x2] / *Min x2) -10/Mines (discovered 2 exits: [*Mat] / *Exi) -10/Exiles -9/Mines -8/Materials History --------- Turn | Location | Event 1 | -11/Junkyard | Discovered new exit (range 0) 1 | -11/Junkyard | Entered Materials 292 | -10/Materials | Discovered new exit (range 15) 306 | -10/Materials | Build established: Mutant 413 | -10/Materials | Identified exit to Mines 413 | -10/Materials | Discovered new exit (range 10) 583 | -10/Materials | Entered Mines 658 | -10/Mines | Met a Derelict bent on vengeance 900 | -10/Mines | Learned location of Zion (-6) 920 | -10/Mines | Discovered new exit (range 12) 972 | -10/Mines | A weapon hastily lodged in a ceiling crevice suddenly fell to the ground 1240 | -10/Mines | Deemed a non-threat by the Exiles lab entrance 1242 | -10/Mines | Discovered new exit (range 5) 1249 | -10/Mines | Entered Exiles 1295 | -10/Exiles | Met 8R-AWN 1327 | -10/Exiles | Met EX-HEX 1379 | -10/Exiles | Met EX-BIN 1432 | -10/Exiles | Met EX-DEC 1544 | -10/Exiles | Discovered new exit (range 10) 1559 | -10/Exiles | Entered Mines 1560 | -9/Mines | Learned location of Storage (-9) 1576 | -9/Mines | Assembled infested the area 1581 | -9/Mines | Assisted by a Guerilla fighting off Assembled 1672 | -9/Mines | Discovered new exit (range 6) 1683 | -9/Mines | Entered Materials 1683 | -8/Materials | Evolved 4 slots: Propulsion x1, Utility x3 1683 | -8/Materials | Self-destructed Last Messages --------------- 01634_ HV Slug penetrates Laser Drill. 01634_ Laser Drill disabled. 01634_ G-34 Mercenary suffers critical hit (Destroy). 01634_ G-34 Mercenary destroyed. 01638_ HV Slug penetrates G-34 Mercenary. 01638_ G-34 Mercenary suffers critical hit (Destroy). 01638_ G-34 Mercenary destroyed. 01638_ HV Slug penetrates Wall. 01641_ R-06 Scavenger collects Sml. Storage Unit. 01642_ B-36 Bruiser destroyed. 01645_ Acquired 48 matter. 01645_ R-06 Scavenger collects Lgt. Ion Engine. 01648_ R-06 Scavenger collects Rnf. Ion Engine. 01655_ Dropped Sml. Storage Unit. 01656_ Acquired Lgt. Armor Plating. 01666_ Acquired 5 matter. 01672_ EXIT=FOUND PARAMETERS=PROPULSION+1,UTILITY+3 LOCATION=UNKNOWN GOAL=ESCAPE Map ----- +----------------------------------------------------+ | | | | | | | | | | | | | | | | | | | | | ???????????????????????????????????????? | | ???????????????????????????????????????? | | ???????????????????????????????????????? | | ???????????????????????????????????????? | | ???????????????????????????????????????? | | ???????????????????????????????????????? | | ???????????????????????????????????????? | | ???????????????????????????????????????? | | ???????????????????????????????????????? | | ???????????????????????????????????????? | | ???????????????????????????????????????? | | ???????????????????????????????????????? | | ???????????????????????????????????????? | | ???????????????????????#####???????????? | | ???????????????????????# #???????????? | | ???????????????????????# @ #???????????? | | ???????????????????????# #???????????? | | ???????????????????????# #???????????? | | ???????????????????????# #???????????? | | ???????????????????????# #???????????? | | ???????????????????????# #???????????? | | ???????????????????????# #???????????? | | ???????????????????????# #???????????? | | ???????????????????????# #???????????? | | ???????????????????????# #???????????? | | ???????????????????????# #???????????? | | ???????????????????????# +???????????? | | ???????????????????????# #???????????? | | ???????????????????????? ????????????? | | ???????????????????????? ????????????? | | ???????????????????????? ????????????? | | ???????????????????????????????????????? | | ???????????????????????????????????????? | | ???????????????????????????????????????? | | ???????????????????????????????????????? | | ???????????????????????????????????????? | | ???????????????????????????????????????? | | ???????????????????????????????????????? | | ???????????????????????????????????????? | | ???????????????????????????????????????? | +----------------------------------------------------+ Best States ------------- Heat Dissipation 47 Energy Generation 10 Energy Capacity 250 Matter Stores 300 Matter Capacity 300 Sight Range 16 Terrain Scan Density 10 Evasion (%) 55 Item Schematics ----------------- ECM Suite | -10/Materials | Hacked Robot Schematics ------------------ None Fabricated ------------ Nothing Alien Tech Used ----------------- None Achievements -------------- None Challenges ------------ None Game ------ Seed SapperFortressImmobilizer Manual? 0 Play Time 00:08:29 Cumulative 134.9 hours Start 2023.05.24 @ 18:05:48 End 2023.05.25 @ 13:58:11 Sessions 5 Manual Loads 0 Difficulty Rogue Special Mode None Game No. 93 Rogue 93 Adventurer 0 Explorer 0 Win Type - Total 4 Types 3/0/1/0/0/0/0/0/0 Lore% 61 Gallery% 79 Achievement% 69 Wizard Run 0 Options --------- ASCII 0 Keyboard 1 Movement Vi Keybinds 0 Fullscreen 2 Font 18/Terminus Map View 76x50 Tactical HUD 1 Map Filters NONE Filters NONE Steam X RUN: 6e6c1cb9-89f5-4b25-93bb-b268057d28a3